Cogmind - Beta 10 @@@ ROGUE MODE // 2020.09.13 @ 22:51:50 Player: Decinym Result: Self-destructed Performance ------------- Evolutions (4) 2000 Regions Visited (14) 2800 Robots Destroyed (149) 745 Value Destroyed (4977) 4977 Prototype IDs (45) 900 Alien Tech Used (0) 0 Bonus (637) 637 TOTAL SCORE: 12059 Bonus ------- High Alert Combat Kills 67 Follower Combat Kills 333 Aligned with FarCom 300 Met Data Miner 300 Friendly Fire -363 Cogmind --------- Core Integrity 379/850 Matter 259/300 Energy 409/910 System Corruption 0% Temperature Cool (3) Movement Walking (150) Ox1 Location -6/Zion Parts ------- > --- POWER (1) -------- Fission Core > --- PROPULSION (3) --- Carbon-fiber Leg Enhanced Flexi-carbon Leg > --- UTILITY (9) ------ Advanced Heat Sink Large Storage Unit Large Storage Unit Large Storage Unit Improved Energy Well Core Analyzer Advanced Particle Charger Reflective Plating > --- WEAPON (2) ------- Beamcaster Heavy Battle Rifle > --- INVENTORY (22) --- Light Fission Core Armored Huge Wheel Combat Airjet Makeshift Flight Unit Nuclear Pulse Thruster Advanced Heat Sink Medium Storage Unit Advanced Sensor Array Advanced Signal Interpreter Advanced Terrain Scanner High-powered Shock Rifle Force Rifle Light EM Pulse Cannon Proton Missile Launcher Improved Proton Missile Launcher Rocket Array Field Lobotomy Kit CR-A16's Behemoth Slayer Dirty Bomb Trap Dirty Bomb Trap Peak State ------------ > --- POWER ------------ Fission Core > --- PROPULSION ------- Enhanced Flexi-carbon Leg Enhanced Flexi-carbon Leg Enhanced Flexi-carbon Leg > --- UTILITY ---------- Advanced Heat Sink Large Storage Unit Large Storage Unit Large Storage Unit Improved Energy Well Advanced Targeting Computer Core Analyzer Improved Propulsion Shielding Layered Medium Armor Plating > --- WEAPON ----------- Matter Neutralizer Matter Neutralizer > --- INVENTORY -------- Light Angular Momentum Engine Combat Airjet Nuclear Pulse Thruster Advanced Heat Sink Medium Storage Unit Advanced Sensor Array Advanced Signal Interpreter Advanced Terrain Scanner Advanced Particle Charger Shock Rifle Lightning Gun High-powered Shock Rifle Force Rifle Force Rifle Beamcaster Light EM Pulse Cannon Neutron Cannon Gauss Cannon Improved Proton Missile Launcher Rocket Array Field Lobotomy Kit Dirty Bomb Trap [Rating: 80] Favorites ----------- Power Light Angular Momentum Engine Engine Light Angular Momentum Engine Power Core Light Nuclear Core Reactor Antimatter Reactor Propulsion Enhanced Flexi-carbon Leg Treads Armored Treads Leg Enhanced Flexi-carbon Leg Wheel Armored Huge Wheel Hover Unit Gravmag System Flight Unit Cooled VTOL Module Utility Large Storage Unit Device Advanced Heat Sink Storage Large Storage Unit Processor Core Analyzer Protection Heavy Armor Plating Weapon Precision Beam Rifle Energy Gun Precision Beam Rifle Energy Cannon Neutron Cannon Ballistic Gun Assault Rifle Ballistic Cannon Assault Cannon Launcher Precision Grenade Launcher Special Weapon Field Lobotomy Kit Piercing Weapon CR-A16's Pointy Stick Build | -11 -10 -10 -10 -9 -8 -7 -7 -7 -7 -6 -6 -6 -6 -6 ------- Run | Scr Mat Min Exi Min Mat Fac Low Low Dat Pro Fac Low Low Zio Slots Evolved 8 | . . . . . 4 2 . . . . 2 . . . Power . | . . . . . . . . . . . . . . . Propulsion 1 | . . . . . 1 . . . . . . . . . Utility 7 | . . . . . 3 2 . . . . 2 . . . Weapon . | . . . . . . . . . . . . . . . Parts Attached 158 | . 1 2 16 3 24 32 11 7 15 5 16 8 6 12 Power 23 | . . . 1 . 2 4 2 2 1 2 3 2 2 2 Engine 15 | . . . . . 2 3 2 1 . . 3 1 2 1 Core 7 | . . . 1 . . 1 . 1 . 2 . 1 . 1 Reactor 1 | . . . . . . . . . 1 . . . . . Propulsion 26 | . . . 7 . 4 8 1 . 5 . . 1 . . Treads 1 | . . . . . . . . . 1 . . . . . Leg 16 | . . . 3 . 3 5 1 . 3 . . 1 . . Wheel 1 | . . . . . . 1 . . . . . . . . Hover 7 | . . . 4 . 1 1 . . 1 . . . . . Flight 1 | . . . . . . 1 . . . . . . . . Utility 51 | . 1 1 2 2 10 9 5 3 4 1 6 1 1 5 Device 17 | . . . . 1 3 1 3 . 2 1 2 1 1 2 Storage 7 | . . . 1 . 1 . . 1 1 . 3 . . . Processor 11 | . 1 . 1 1 1 4 . 2 . . . . . 1 Hackware . | . . . . . . . . . . . . . . . Protection 16 | . . 1 . . 5 4 2 . 1 . 1 . . 2 Artifact . | . . . . . . . . . . . . . . . Weapon 58 | . . 1 6 1 8 11 3 2 5 2 7 4 3 5 Energy Gun 23 | . . . . . 7 6 1 . 1 . 2 2 2 2 Energy Cannon 12 | . . . . . . . 1 1 3 1 3 2 1 . Ballistic Gun 4 | . . . 3 . . . . . . . . . . 1 Ballistic Cannon 6 | . . 1 2 1 . 2 . . . . . . . . Launcher 11 | . . . 1 . 1 3 1 1 . 1 2 . . 1 Special Weapon 1 | . . . . . . . . . 1 . . . . . Impact Weapon . | . . . . . . . . . . . . . . . Slashing Weapon . | . . . . . . . . . . . . . . . Piercing Weapon 1 | . . . . . . . . . . . . . . 1 Special Melee Weapon . | . . . . . . . . . . . . . . . Unidentified Prototypes 9 | . . . . . 2 5 . . 2 . . . . . Parts Lost 46 | . . . 7 . 4 6 3 3 4 1 7 2 5 4 Power 12 | . . . . . 1 2 . 2 . 1 2 1 1 2 Propulsion 7 | . . . 3 . 1 . . . 2 . . . . 1 Utility 13 | . . . 2 . 2 2 2 . . . 3 . 1 1 Weapon 14 | . . . 2 . . 2 1 1 2 . 2 1 3 . Highest Loss Streak 6 | . . . 3 . 1 2 2 1 4 1 6 2 3 3 Average Slot Usage (%) 89 | . 98 100 93 85 92 82 87 81 91 99 93 83 83 89 Engine 5 | . 14 14 10 . 7 5 4 3 . . . 1 2 5 Core 1 | . . . 3 14 1 . 2 . 5 2 4 2 2 . Leg 16 | . 28 28 21 . 22 9 7 7 10 23 20 20 20 19 Wheel 1 | . . . . . . 6 7 7 3 . . . . . Hover 1 | . . . 4 28 3 . . . . . . . . . Device 8 | . . . . . 14 6 9 14 2 7 7 5 8 16 Storage 19 | . 14 14 12 14 12 15 15 15 22 23 24 26 26 26 Processor 10 | . 12 5 3 13 4 14 18 16 24 15 13 13 11 6 Protection 4 | . . 8 10 . 7 7 8 . 2 7 8 . . . Energy Gun 6 | . . . . . 15 13 8 2 1 . 3 12 8 6 Energy Cannon 3 | . . . . . . . 2 7 10 14 8 . 2 4 Ballistic Gun 2 | . 28 19 10 . . . . . . . . . . . Ballistic Cannon 2 | . . 8 13 15 1 . . . . . . . . . Naked Turns . | . . . . . . . . . . . . . . . Heaviest Build 95 | 12 12 26 32 35 61 65 61 68 95 79 95 77 77 87 Greatest Support 84 | 20 20 20 30 22 55 55 28 28 84 84 84 84 71 71 Greatest Overweight (x) 9 | . . 1 9 1 1 4 2 2 2 . 1 1 1 1 Average Overweight (x) . | . . . . 1 . 1 1 1 1 . . . . . Largest Inventory Capacity 22 | . 6 6 10 10 16 16 16 22 22 16 22 22 22 22 Average Capacity 16 | . 6 6 6 10 12 16 16 16 20 16 20 22 22 22 Most Carried 22 | . 6 6 6 10 16 16 16 21 21 16 22 21 22 22 Average Carried 15 | . 6 5 5 8 11 15 15 13 18 15 19 19 19 21 Final Capacity 22 | 6 6 6 10 10 16 16 16 22 16 16 22 22 22 22 Final Carried 21 | 6 6 6 4 10 16 16 14 21 16 16 20 20 21 21 Class Distribution -------------------- 56% | Scavenger-Mutant 40% | Mutant Dominant Class ---------------- Mutant | -10/Materials Mutant | -10/Mines Mutant | -10/Exiles Scavenger-Mutant | -9/Mines Scavenger-Mutant | -8/Materials Mutant | -7/Factory Mutant | -7/Lower Caves Mutant | -7/Lower Caves Derelict-Mutant | -7/Data Miner Scavenger-Mutant | -6/Proximity Caves Scavenger-Mutant | -6/Factory Scavenger-Mutant | -6/Lower Caves Scavenger-Mutant | -6/Lower Caves Scavenger-Mutant | -6/Zion Resources | -11 -10 -10 -10 -9 -8 -7 -7 -7 -7 -6 -6 -6 -6 -6 ----------- Run | Scr Mat Min Exi Min Mat Fac Low Low Dat Pro Fac Low Low Zio Matter Collected 2710 | 182 . 112 190 236 386 352 245 233 226 94 115 167 65 107 Remotely . | . . . . . . . . . . . . . . . Salvage Created 5495 | . 66 69 703 27 806 1288 433 249 203 373 423 507 75 273 Parts 274 | . 3 11 39 . 63 53 13 12 9 11 18 18 3 21 Haulers Intercepted 2 | . . . . . 1 1 . . . . . . . . Recyclers Shooed 2 | . . . . . . 1 . . . . 1 . . . Parts Field Recycled . | . . . . . . . . . . . . . . . Retrieved Matter . | . . . . . . . . . . . . . . . Parts Self-Destructed 41 | . . . . . . . 6 12 . 8 . 13 2 . Prevented 11 | . . . . . . . 5 3 . . . . 3 . Kills | -11 -10 -10 -10 -9 -8 -7 -7 -7 -7 -6 -6 -6 -6 -6 ------- Run | Scr Mat Min Exi Min Mat Fac Low Low Dat Pro Fac Low Low Zio Combat Hostiles Destroyed 109 | . 2 . 19 5 18 17 8 14 2 8 8 6 1 1 Guns 38 | . 2 . 1 . 15 10 2 . 1 . . 6 1 . Cannons 32 | . . . 7 5 . 4 2 2 . 7 5 . . . AOE 30 | . . . 9 . 3 . 3 11 . 1 3 . . . Classes Destroyed 20 | . 1 3 3 1 6 1 . . . 2 . 1 . 2 Worker 11 | . . 1 . . 4 2 . . . . 4 . . . Builder 5 | . . 2 . . 1 1 . . . . 1 . . . Tunneler 2 | . . 1 . . . . . . . . 1 . . . Hauler 2 | . . . . . 1 1 . . . . . . . . Recycler 7 | . . . . . 1 5 . . . . 1 . . . Minesweeper 1 | . . . . . . . . . . 1 . . . . Operator 1 | . . . . . 1 . . . . . . . . . Watcher 1 | . . . . . . 1 . . . . . . . . Swarmer 18 | . . . . . 7 1 3 7 . . . . . . Grunt 46 | . 2 . 9 . 5 6 4 6 . 6 3 5 . . Brawler 5 | . . . 2 . . 1 . 1 . . . 1 . . Duelist 4 | . . . . . 1 . 1 . . 1 1 . . . Sentry 11 | . . . . . 4 2 . . . . 4 . 1 . Hunter 9 | . . . 4 . 1 4 . . . . . . . . Programmer 7 | . . . 4 . . 3 . . . . . . . . Enhanced Grunt 2 | . . . . . . . . . 2 . . . . . Zionite 5 | . . . . . . . . . . . . . . 5 Packrat 2 | . . . . . . . 2 . . . . . . . Samaritan 2 | . . . . . . . . . . . . 2 . . Master Thief 1 | . . . . . . . . . . 1 . . . . Assembled 5 | . . . . 5 . . . . . . . . . . Marauder 2 | . . . . . . . . . . . . . . 2 Best Kill Streak 16 | . 2 2 16 2 7 4 4 6 2 4 12 3 1 3 Combat Bots Only 16 | . 2 . 16 2 5 2 4 6 2 4 7 3 1 1 Max Kills in Single Turn 5 | . 1 2 4 1 2 1 1 2 1 1 5 2 1 1 Gunslinging 1 | . . . . . . . . . . . . 1 . . Exploded 4 | . . . 4 . 1 . 1 2 . 1 2 . . . Melee . | . . . . . . . . . . . . . . . Uniques/NPCs Destroyed . | . . . . . . . . . . . . . . . Combat | -11 -10 -10 -10 -9 -8 -7 -7 -7 -7 -6 -6 -6 -6 -6 -------- Run | Scr Mat Min Exi Min Mat Fac Low Low Dat Pro Fac Low Low Zio Damage Taken 8972 | . . 6 1007 34 757 1814 775 452 770 625 1289 376 406 661 Core 1238 | . . . 226 . 70 132 74 62 128 75 217 53 106 95 Absorbed by Shields . | . . . . . . . . . . . . . . . Core Remaining (%) 57 | 100 . . . 9 87 . . . . 32 . . . . Volleys Fired 379 | . 4 6 49 11 51 88 32 23 16 24 31 26 5 13 Largest 2 | . 2 2 2 1 2 2 2 1 2 2 2 2 2 2 Hottest 210 | . 40 64 92 44 122 122 119 69 132 180 210 180 106 125 Shots Fired 608 | . 8 12 63 10 97 157 50 24 19 42 38 52 10 26 Gun 382 | . 8 6 8 . 92 138 40 1 10 . . 47 6 26 Cannon 185 | . . 6 47 10 . 18 8 6 8 41 32 5 4 . Launcher 40 | . . . 8 . 5 1 2 17 . 1 6 . . . Special 1 | . . . . . . . . . 1 . . . . . Kinetic 115 | . 8 12 55 10 . 18 . . . . . . . 12 Thermal 357 | . . . . . 92 128 . . . 41 32 51 . 13 Explosive 30 | . . . . . 5 1 2 17 . 1 4 . . . Electromagnetic 105 | . . . 8 . . 10 48 7 18 . 2 1 10 1 Robot Hit Streak 28 | . 3 2 13 6 19 28 12 15 23 11 12 9 4 19 Robot Miss Streak 6 | . 2 2 6 1 2 4 3 1 1 3 2 3 1 3 Penetration Max . | . . . . . . . . . . . . . . . Secondary Targets 8 | . 1 . . . 3 2 . . . . . 2 . . Max Gunslinging Chain 1 | . 1 . . . 1 1 . . . . . 1 . . Shots Hit Robots 440 | . 4 5 32 8 73 124 36 19 18 26 30 37 8 20 Core Hits 285 | . 4 4 31 5 39 52 19 24 14 21 46 17 4 5 Critical Hits 13 | . . . 6 1 . . . . . 3 . 2 . 1 Critical Kills 8 | . . . 3 . . . . . . 3 . 2 . . Critical Parts Destroyed 4 | . . . 3 1 . . . . . . . . . . Melee Attacks 5 | . . . . . . . . . . . . . . 5 Impact . | . . . . . . . . . . . . . . . Slashing . | . . . . . . . . . . . . . . . Piercing 5 | . . . . . . . . . . . . . . 5 Sneak Attacks 1 | . . . . . . . . . . . . . . 1 Combat Hostiles . | . . . . . . . . . . . . . . . Follow-up Attacks . | . . . . . . . . . . . . . . . Damage Inflicted 14077 | . 53 102 2008 230 1609 2394 1024 1868 450 1170 1761 816 123 469 Guns 4975 | . 53 50 70 . 1107 1968 441 . 121 . . 742 63 360 Cannons 4004 | . . 52 732 230 . 314 202 179 122 968 1071 74 60 . Explosions 4989 | . . . 1206 . 502 112 381 1689 207 202 690 . . . Melee 109 | . . . . . . . . . . . . . . 109 Ramming . | . . . . . . . . . . . . . . . Kinetic 1635 | . 53 102 802 230 . 314 . . . . . . . 134 Thermal 6781 | . . . 451 . 1107 1858 97 . 207 968 1071 816 . 206 Explosive 3260 | . . . . . 502 . 284 1689 . 202 583 . . . Electromagnetic 2292 | . . . 755 . . 222 643 179 243 . 107 . 123 20 Impact . | . . . . . . . . . . . . . . . Slashing . | . . . . . . . . . . . . . . . Piercing 109 | . . . . . . . . . . . . . . 109 Highest Corruption 16 | . . . 16 16 . 7 7 7 7 9 . . . . Average Corruption 8 | . . . 14 16 . 5 7 7 7 8 . . . . Corruption Purged . | . . . . . . . . . . . . . . . Effects 96 | . . . 15 8 . 11 20 20 9 13 . . . . Message Errors 20 | . . . 1 2 . 3 4 4 3 3 . . . . Matter Fused 19 | . . . 1 . . 1 7 5 1 4 . . . . Heat Flow Errors 5 | . . . . . . . 2 2 1 . . . . . Energy Discharges 14 | . . . 3 1 . 2 2 4 2 . . . . . Parts Rejected 1 | . . . . . . . 1 . . . . . . . Data Loss (minor) 10 | . . . 1 2 . 2 . 3 . 2 . . . . Data Loss (major) 1 | . . . 1 . . . . . . . . . . . Misfires 3 | . . . . . . 1 . 1 1 . . . . . Misdirections 1 | . . . 1 . . . . . . . . . . . Targeting Errors 18 | . . . 6 2 . 1 3 1 1 4 . . . . Weapon Failures 4 | . . . 1 1 . 1 1 . . . . . . . Overload Shots . | . . . . . . . . . . . . . . . Overflow Damage 364 | . . . 41 21 29 8 3 100 . 94 68 . . . Projectiles 217 | . . . 6 21 . 8 . 20 . 94 68 . . . Explosions 147 | . . . 35 . 29 . 3 80 . . . . . . Melee . | . . . . . . . . . . . . . . . Knockbacks 6 | . . . 1 2 . 3 . . . . . . . . Impact . | . . . . . . . . . . . . . . . Kinetic 6 | . . . 1 2 . 3 . . . . . . . . Secondary . | . . . . . . . . . . . . . . . Self-Inflicted Damage 217 | . . . . . 9 3 . 157 . . 48 . . . Shots 10 | . . . . . 1 1 . 6 . . 2 . . . Rammed . | . . . . . . . . . . . . . . . Targets Rammed . | . . . . . . . . . . . . . . . Kicked . | . . . . . . . . . . . . . . . Crushed . | . . . . . . . . . . . . . . . Highest Temperature 360 | . . 36 352 60 246 237 360 126 251 294 331 297 3 6 Average Temperature 88 | . . 13 139 23 65 49 138 63 92 97 82 100 3 4 Received Heat Transfer 1908 | . . . 48 . 225 402 288 90 102 243 312 120 60 18 Effects 12 | . . . 3 . 1 . 4 . . 2 2 . . . Energy Bleed 2 | . . . 1 . 1 . . . . . . . . . Interference 8 | . . . . . . . 4 . . 2 2 . . . Short Circuit 1 | . . . 1 . . . . . . . . . . . Damage (minor) 1 | . . . 1 . . . . . . . . . . . Siege Activations . | . . . . . . . . . . . . . . . Robots Corrupted 6 | . . . 2 . . 1 1 1 1 . . . . . Combat Hostiles 6 | . . . 2 . . 1 1 1 1 . . . . . Parts Fried 10 | . . . 2 . . 2 4 . 2 . . . . . Impact Corruptions . | . . . . . . . . . . . . . . . Robots Melted 3 | . . . . . . 2 . . . . . . . 1 Combat Hostiles 2 | . . . . . . 2 . . . . . . . . Parts Melted 21 | . . . . . 6 12 . . . . . 3 . . Heat Transferred 10225 | . . . 650 . 2405 3922 . . 200 625 844 1283 . 296 Parts Sabotaged . | . . . . . . . . . . . . . . . Parts Stolen 4 | . . . . . . . 1 . . 1 . 2 . . Parts Stripped . | . . . . . . . . . . . . . . . Power Chain Reactions 11 | . . . 7 . . . 2 . 1 . 1 . . . Missiles Intercepted . | . . . . . . . . . . . . . . . Alert | -11 -10 -10 -10 -9 -8 -7 -7 -7 -7 -6 -6 -6 -6 -6 ------- Run | Scr Mat Min Exi Min Mat Fac Low Low Dat Pro Fac Low Low Zio Peak Influence 448 | . 69 91 . 15 375 448 . . . . 232 . . . Initial 112 | . . 26 . . 5 112 . . . . 97 . . . Average 154 | . 16 34 . 11 184 226 . . . . 138 . . . Maximum Alert Level 2 | . . . . . 1 2 . . . . 1 . . . Low Security (%) 66 | . 100 100 . 100 58 41 . . . . 86 . . . Level 1 30 | . . . . . 41 51 . . . . 13 . . . Level 2 3 | . . . . . . 7 . . . . . . . . Level 3 . | . . . . . . . . . . . . . . . Level 4 . | . . . . . . . . . . . . . . . Level 5 . | . . . . . . . . . . . . . . . High Security . | . . . . . . . . . . . . . . . Max Security . | . . . . . . . . . . . . . . . Squads Dispatched 21 | . 1 1 . 1 1 14 . . . . 3 . . . Investigation 10 | . 1 1 . . . 8 . . . . . . . . Extermination 2 | . . . . . . 2 . . . . . . . . Reinforcement 5 | . . . . 1 1 2 . . . . 1 . . . Assault . | . . . . . . . . . . . . . . . Garrison 4 | . . . . . . 2 . . . . 2 . . . Intercept . | . . . . . . . . . . . . . . . Construction Impeded 1 | . . . . 1 . . . . . . . . . . Haulers Reinforced 1 | . . . . . . 1 . . . . . . . . Stealth | -11 -10 -10 -10 -9 -8 -7 -7 -7 -7 -6 -6 -6 -6 -6 --------- Run | Scr Mat Min Exi Min Mat Fac Low Low Dat Pro Fac Low Low Zio Distress Signals 3 | . . . . . 1 1 . . . . 1 . . . Communications Jammed . | . . . . . . . . . . . . . . . Distress Signals . | . . . . . . . . . . . . . . . Times Spotted 191 | . 5 3 29 16 38 27 12 15 3 8 13 9 3 10 Peak Tracking Total 10 | . 4 3 10 10 8 4 4 4 3 4 7 6 2 4 Tactical Retreats 23 | . . . 3 3 10 1 . 1 . . . 1 2 2 Traps | -11 -10 -10 -10 -9 -8 -7 -7 -7 -7 -6 -6 -6 -6 -6 ------- Run | Scr Mat Min Exi Min Mat Fac Low Low Dat Pro Fac Low Low Zio Traps Triggered 9 | . . . . . 1 5 . . . 1 2 . . . Indirectly 3 | . . . . . . 1 . . . . 2 . . . Trap Hack Attempts . | . . . . . . . . . . . . . . . Triggered . | . . . . . . . . . . . . . . . Disarmed . | . . . . . . . . . . . . . . . Reprogrammed . | . . . . . . . . . . . . . . . Reused . | . . . . . . . . . . . . . . . Traps Extracted . | . . . . . . . . . . . . . . . Installed . | . . . . . . . . . . . . . . . Triggered 4 | . . . . . . . 2 2 . . . . . . Exploded 1 | . . . 1 . . . . . . . . . . . Machines | -11 -10 -10 -10 -9 -8 -7 -7 -7 -7 -6 -6 -6 -6 -6 ---------- Run | Scr Mat Min Exi Min Mat Fac Low Low Dat Pro Fac Low Low Zio Machines Disabled 14 | . . . 5 . 1 4 . . . . 4 . . . Max in Single Turn 2 | . . . 2 . 1 2 . . . . 2 . . . Machines Sabotaged . | . . . . . . . . . . . . . . . Garrisons Compromised . | . . . . . . . . . . . . . . . Overloaded Fab Kills . | . . . . . . . . . . . . . . . Fab Network Shutdowns . | . . . . . . . . . . . . . . . Hacking | -11 -10 -10 -10 -9 -8 -7 -7 -7 -7 -6 -6 -6 -6 -6 --------- Run | Scr Mat Min Exi Min Mat Fac Low Low Dat Pro Fac Low Low Zio Machines Accessed 25 | . 2 1 1 . 4 10 . . 4 . 2 . . 1 Terminals 14 | . 2 . . . 4 7 . . . . 1 . . . Fabricators 3 | . . . . . . 2 . . . . 1 . . . Repair Stations 1 | . . . . . . 1 . . . . . . . . Recycling Units . | . . . . . . . . . . . . . . . Scanalyzers . | . . . . . . . . . . . . . . . Garrison Access . | . . . . . . . . . . . . . . . Total Hacks 90 | . 5 1 1 . 15 34 . . 27 . 4 . . 3 Successful 51 | . 2 1 1 . 6 10 . . 27 . 1 . . 3 Failed 39 | . 3 . . . 9 24 . . . . 3 . . . Catastrophic 13 | . 1 . . . 2 10 . . . . . . . . Database Lockouts . | . . . . . . . . . . . . . . . Manual 30 | . 3 . 1 . 13 13 . . . . . . . . Terminals 47 | . 5 . . . 15 25 . . . . 2 . . . Fabricators 8 | . . . . . . 6 . . . . 2 . . . Repair Stations 3 | . . . . . . 3 . . . . . . . . Recycling Units . | . . . . . . . . . . . . . . . Scanalyzers . | . . . . . . . . . . . . . . . Garrison Access . | . . . . . . . . . . . . . . . Terminal Hacks 44 | . 2 1 1 . 4 6 . . 27 . . . . 3 Record 11 | . . . . . . . . . 11 . . . . . Part Schematic 15 | . 1 . . . . 4 . . 7 . . . . 3 Robot Schematic 6 | . . . . . . . . . 6 . . . . . Prototype ID Bank 3 | . . . . . . . . . 3 . . . . . Open Door 1 | . . 1 . . . . . . . . . . . . Branch Access Points 3 | . 1 . . . 1 1 . . . . . . . . Terminal Index 1 | . . . . . . 1 . . . . . . . . Scanalyzer Index 1 | . . . . . 1 . . . . . . . . . Unreport Threat 1 | . . . . . 1 . . . . . . . . . Hauler Manifests 1 | . . . . . 1 . . . . . . . . . EX-Prototype ID Bank 1 | . . . 1 . . . . . . . . . . . Fabricator Hacks 3 | . . . . . . 2 . . . . 1 . . . Load Schematic 2 | . . . . . . 2 . . . . . . . . Build 1 | . . . . . . . . . . . 1 . . . Repair Station Hacks 2 | . . . . . . 2 . . . . . . . . Scan Component 1 | . . . . . . 1 . . . . . . . . Repair 1 | . . . . . . 1 . . . . . . . . Recycling Unit Hacks . | . . . . . . . . . . . . . . . Scanalyzer . | . . . . . . . . . . . . . . . Garrison Access Hacks . | . . . . . . . . . . . . . . . Unauthorized Hacks 2 | . . . . . 2 . . . . . . . . . Terminals 2 | . . . . . 2 . . . . . . . . . Track 1 | . . . . . 1 . . . . . . . . . Botnet 1 | . . . . . 1 . . . . . . . . . Fabricators . | . . . . . . . . . . . . . . . Repair Stations . | . . . . . . . . . . . . . . . Recycling Units . | . . . . . . . . . . . . . . . Scanalyzers . | . . . . . . . . . . . . . . . Garrison Access . | . . . . . . . . . . . . . . . Data Cores Recovered . | . . . . . . . . . . . . . . . Used . | . . . . . . . . . . . . . . . Hacking Detections 18 | . 2 . . . 4 10 . . . . 2 . . . Full Trace Events 8 | . 1 . . . 1 6 . . . . . . . . Feedback Events . | . . . . . . . . . . . . . . . Feedback Blocked . | . . . . . . . . . . . . . . . Robot Schematics Acquired 6 | . . . . . . . . . 6 . . . . . Robots Built . | . . . . . . . . . . . . . . . Matter . | . . . . . . . . . . . . . . . Time . | . . . . . . . . . . . . . . . Total Robot Build Rating . | . . . . . . . . . . . . . . . Part Schematics Acquired 15 | . 1 . . . . 4 . . 7 . . . . 3 Parts Built 2 | . . . . . . . . . . . 2 . . . Matter 234 | . . . . . . . . . . . 234 . . . Time 58 | . . . . . . . . . . . 58 . . . Total Part Build Rating 14 | . . . . . . . . . . . 14 . . . Parts Repaired 1 | . . . . . . 1 . . . . . . . . Time 25 | . . . . . . 25 . . . . . . . . Parts Recycled . | . . . . . . . . . . . . . . . Recycled Matter . | . . . . . . . . . . . . . . . Retrieved Matter . | . . . . . . . . . . . . . . . Retrieved Components . | . . . . . . . . . . . . . . . Parts Scanalyzed . | . . . . . . . . . . . . . . . Part Schematics Acquired . | . . . . . . . . . . . . . . . Parts Damaged . | . . . . . . . . . . . . . . . Bothacking | -11 -10 -10 -10 -9 -8 -7 -7 -7 -7 -6 -6 -6 -6 -6 ------------ Run | Scr Mat Min Exi Min Mat Fac Low Low Dat Pro Fac Low Low Zio Used RIF Installer . | . . . . . . . . . . . . . . . Robots Hacked . | . . . . . . . . . . . . . . . Non-combat . | . . . . . . . . . . . . . . . Combat . | . . . . . . . . . . . . . . . Robot Hacks Applied . | . . . . . . . . . . . . . . . Relay Couplers Released 3 | . . . . . . 3 . . . . . . . . Programmers 3 | . . . . . . 3 . . . . . . . . Robots Rewired . | . . . . . . . . . . . . . . . Allies Hacked 1 | . . . 1 . . . . . . . . . . . Hacks Repelled . | . . . . . . . . . . . . . . . Allies | -11 -10 -10 -10 -9 -8 -7 -7 -7 -7 -6 -6 -6 -6 -6 -------- Run | Scr Mat Min Exi Min Mat Fac Low Low Dat Pro Fac Low Low Zio Total Allies 5 | . . 4 . . . . . . 1 . . . . . Largest Group 4 | . . 4 4 . . . . . 1 . . . . . Highest-Rated Group 94 | . . 71 71 . . . . . 94 . . . . . Highest-Rated Ally 94 | . . 31 31 . . . . . 94 . . . . . Total Orders . | . . . . . . . . . . . . . . . Ally Attacks 54 | . . 7 36 . . . . . 11 . . . . . Total Damage 704 | . . 67 345 . . . . . 292 . . . . . Kills 11 | . . 3 7 . . . . . 1 . . . . . Allies Corrupted . | . . . . . . . . . . . . . . . Allies Melted . | . . . . . . . . . . . . . . . Field Lobotomies 1 | . . . . . . . . . 1 . . . . . Intel | -11 -10 -10 -10 -9 -8 -7 -7 -7 -7 -6 -6 -6 -6 -6 ------- Run | Scr Mat Min Exi Min Mat Fac Low Low Dat Pro Fac Low Low Zio Robot Analysis Total . | . . . . . . . . . . . . . . . Derelict Logs Recovered 11 | . . 2 . 1 . . 1 2 . 1 . 2 . 2 Drone Launches . | . . . . . . . . . . . . . . . Drone Recoveries . | . . . . . . . . . . . . . . . Exploration | -11 -10 -10 -10 -9 -8 -7 -7 -7 -7 -6 -6 -6 -6 -6 ------------- Run | Scr Mat Min Exi Min Mat Fac Low Low Dat Pro Fac Low Low Zio Turns Passed 8104 | . 97 529 649 154 674 1228 562 553 275 368 513 660 350 1492 Spaces Moved 4866 | 1 71 360 377 99 358 591 337 369 140 220 258 388 244 1053 Core 3 | . . . 3 . . . . . . . . . . . Treads 11 | . . . . . . . . . 11 . . . . . Legs 3471 | 1 71 360 268 . 277 276 . . 55 220 258 388 244 1053 Wheels 1095 | . . . . . . 315 337 369 74 . . . . . Hover 286 | . . . 106 99 81 . . . . . . . . . Flight . | . . . . . . . . . . . . . . . Fastest Speed 56 | 120 120 120 56 116 58 110 110 110 120 120 120 120 120 120 Average Speed 129 | 120 120 137 133 116 115 151 111 110 131 120 133 126 133 133 Slowest Speed 500 | 120 120 150 500 116 150 240 120 120 210 120 150 150 150 150 Overloaded Moves . | . . . . . . . . . . . . . . . Propulsion Burnouts . | . . . . . . . . . . . . . . . Robots Hopped . | . . . . . . . . . . . . . . . Cave-ins Triggered . | . . . . . . . . . . . . . . . Exploration Rate (%) 43 | 2 22 71 67 25 37 20 47 53 76 41 10 56 50 81 Regions Visited 14 Branch Regions 10 Pre-discovered Areas 4 | . . 1 . . . . 1 . 1 . . . . 1 Known Exits Taken 4 | . 1 . . . . 1 . . . . 1 1 . . Unknown Exits Taken 10 | 1 . 1 1 1 1 . 1 1 1 1 . . 1 . Scrap Searched 14 | . . 2 . . . . . 6 . 1 . 1 1 3 Spaces Dug 13 | . . . . . . 11 . . . . 2 . . . Terrain Destroyed 231 | . . 2 13 . 19 16 6 108 8 25 32 2 . . Melee . | . . . . . . . . . . . . . . . Projectile 25 | . . 2 5 . . 5 . . . 9 2 2 . . AOE 206 | . . . 8 . 19 11 6 108 8 16 30 . . . Terrain Rammed . | . . . . . . . . . . . . . . . Walls Destroyed . | . . . . . . . . . . . . . . . Machines Disabled . | . . . . . . . . . . . . . . . Actions | -11 -10 -10 -10 -9 -8 -7 -7 -7 -7 -6 -6 -6 -6 -6 --------- Run | Scr Mat Min Exi Min Mat Fac Low Low Dat Pro Fac Low Low Zio Total 6029 | . 75 383 459 127 527 771 469 490 213 273 379 504 257 1102 Wait 414 | . . 6 6 5 51 10 77 77 24 17 60 75 . 6 Move 4852 | . 70 359 376 98 357 590 336 368 139 219 257 387 243 1053 Hop . | . . . . . . . . . . . . . . . Pick Up 92 | . . 5 3 7 18 17 3 11 4 4 8 5 3 4 Fast Attach 90 | . 1 1 9 3 15 21 7 4 10 1 6 3 1 8 Attach 33 | . . . 4 . 3 7 1 1 2 1 5 3 4 2 Detach 12 | . . . 2 . 2 4 . . 1 . 2 . . 1 Swap 35 | . . 1 3 . 6 4 3 2 3 3 5 2 1 2 Drop 113 | . . 5 7 3 24 30 6 4 14 4 5 3 . 8 Fire 379 | . 4 6 49 11 51 88 32 23 16 24 31 26 5 13 Melee 5 | . . . . . . . . . . . . . . 5 Ram . | . . . . . . . . . . . . . . . Kick . | . . . . . . . . . . . . . . . Crush . | . . . . . . . . . . . . . . . Escape Stasis . | . . . . . . . . . . . . . . . Rewire 4 | . . . . . . . 4 . . . . . . . Trap . | . . . . . . . . . . . . . . . Miscellaneous . | . . . . . . . . . . . . . . . Route ------- -11/Scrapyard -10/Materials -10/Mines (discovered 2 exits: [*Mat] / *Exi) -10/Exiles -9/Mines -8/Materials -7/Factory (discovered 4 exits: *Sto x2 / *Low x2) -7/Lower Caves -7/Lower Caves -7/Data Miner -6/Proximity Caves -6/Factory (discovered 2 exits: Fac / *Low) -6/Lower Caves -6/Lower Caves (discovered 2 exits: *Fac / *Zio) -6/Zion (discovered 1 exit: [*Pro]) History --------- Turn | Location | Event 1 | -11/Scrapyard | Discovered new exit (range 0) 1 | -11/Scrapyard | Entered Materials 34 | -10/Materials | Identified exit to Mines 98 | -10/Materials | Entered Mines 178 | -10/Mines | Learned Materials terminal intel 218 | -10/Mines | A weapon hastily lodged in a ceiling crevice suddenly fell to the ground 250 | -10/Mines | Met a Derelict shopkeep closing up shop 309 | -10/Mines | Build established: Mutant 417 | -10/Mines | Discovered new exit (range 6) 424 | -10/Mines | Assisted by bots powering up and referring to "LRC-V3" 593 | -10/Mines | Escorted by a lone wolf Derelict 616 | -10/Mines | Deemed a non-threat by the Exiles lab entrance 616 | -10/Mines | Discovered new exit (range 5) 627 | -10/Mines | Entered Exiles 627 | -10/Exiles | Accompanied by 4 allies 668 | -10/Exiles | Met 8R-AWN 686 | -10/Exiles | Met EX-HEX 734 | -10/Exiles | Met EX-BIN 755 | -10/Exiles | Aligned with FarCom system 756 | -10/Exiles | Given EX-Vault access code 794 | -10/Exiles | Opened EX-Vault 828 | -10/Exiles | Warned to stay clear of 0b10 Research branches 855 | -10/Exiles | Exiles lab attacked by MAIN.C 932 | -10/Exiles | Found Field Lobotomy Kit 1075 | -10/Exiles | Attacked by the Exiles 1097 | -10/Exiles | Destroyed 16 combat bots 1106 | -10/Exiles | System corruption reached 10% 1136 | -10/Exiles | Lost 3 parts (2u1w) 1164 | -10/Exiles | Core integrity fell below 50% 1223 | -10/Exiles | Core integrity fell below 20% 1266 | -10/Exiles | Discovered new exit (range 10) 1276 | -10/Exiles | Left Exiles lab with Field Lobotomy Kit 1276 | -10/Exiles | Entered Mines 1286 | -9/Mines | Found a hidden stash of uninstalled traps 1306 | -9/Mines | Assembled infested the area 1311 | -9/Mines | Assisted by a Guerilla fighting off Assembled 1321 | -9/Mines | Discovered new exit (range 6) 1365 | -9/Mines | Learned Materials emergency access door positions 1430 | -9/Mines | Entered Materials 1430 | -8/Materials | Evolved 4 slots: Propulsion x1, Utility x3 1432 | -8/Materials | Loaded intel: 11 terminal locations 1591 | -8/Materials | Build established: Scavenger-Mutant 1854 | -8/Materials | Discovered new exit (range 6) 2104 | -8/Materials | Entered Factory 2104 | -7/Factory | Evolved 2 slots: Utility x2 2348 | -7/Factory | Repaired Lgt. Angular Momentum Engine? 2421 | -7/Factory | Identified exit to Storage 2421 | -7/Factory | Identified exit to Lower Caves 2579 | -7/Factory | Build established: Mutant 3069 | -7/Factory | Found Prototype Launcher 3069 | -7/Factory | Identified Rocket Array 3188 | -7/Factory | Garrison activated, responded to threat 3332 | -7/Factory | Entered Lower Caves 3385 | -7/Lower Caves | Encountered a Warlord checkpoint 3726 | -7/Lower Caves | Spotted YF-1NB(f) 3727 | -7/Lower Caves | Encountered a Master Thief 3727 | -7/Lower Caves | Flexi-carbon Leg stolen by Master Thief 3791 | -7/Lower Caves | Discovered new exit (range 10) 3894 | -7/Lower Caves | Entered another Lower Caves area 4196 | -7/Lower Caves | Spotted B-75 Beast 4354 | -7/Lower Caves | Discovered new exit (range 6) 4368 | -7/Lower Caves | Learned Factory trap positions 4378 | -7/Lower Caves | Learned location of 1 exit from Factory 4447 | -7/Lower Caves | Entered Data Miner 4447 | -7/Data Miner | Discovered new exit (range 6) 4470 | -7/Data Miner | Met Data Miner 4507 | -7/Data Miner | Learned location of Section 7 (-3) 4507 | -7/Data Miner | Acquired the access code to Warlord's prototype stash 4516 | -7/Data Miner | Received God Mode back door access code from Data Miner 4545 | -7/Data Miner | Assimilated Enhanced Grunt with FLK Orb 4588 | -7/Data Miner | Core integrity fell below 50% 4610 | -7/Data Miner | Lost 4 parts (2n2w) 4722 | -7/Data Miner | Entered Proximity Caves 4909 | -6/Proximity Caves | Build established: Scavenger-Mutant 4990 | -6/Proximity Caves | Spotted UD-3UZ(f) 4991 | -6/Proximity Caves | Encountered a Master Thief 4993 | -6/Proximity Caves | Field Lobotomy Kit stolen by Master Thief 4998 | -6/Proximity Caves | Destroyed UD-3UZ(f) 5065 | -6/Proximity Caves | Discovered new exit (range 6) 5090 | -6/Proximity Caves | Entered Factory 5090 | -6/Factory | Evolved 2 slots: Utility x2 5091 | -6/Factory | Identified exit to Lower Caves 5092 | -6/Factory | Identified exit to Factory 5093 | -6/Factory | Loaded intel: 98 trap records 5370 | -6/Factory | Fabricated Matter Neutralizer (x2) 5479 | -6/Factory | Garrison activated, responded to threat 5539 | -6/Factory | Spotted B-75 Beast 5553 | -6/Factory | Destroyed 7 combat bots 5595 | -6/Factory | Lost 6 parts (2p3u1w) 5603 | -6/Factory | Entered Lower Caves 5828 | -6/Lower Caves | Spotted W1-CC7(f) 5829 | -6/Lower Caves | Encountered a Master Thief 5832 | -6/Lower Caves | Matter Neutralizer stolen by Master Thief 6099 | -6/Lower Caves | Learned 4 Factory zone layouts 6101 | -6/Lower Caves | Identified exit to Lower Caves 6125 | -6/Lower Caves | Spotted 7P-WGL(f) 6126 | -6/Lower Caves | Encountered a Master Thief 6130 | -6/Lower Caves | Enh. Flexi-carbon Leg stolen by Master Thief 6263 | -6/Lower Caves | Entered another Lower Caves area 6287 | -6/Lower Caves | Discovered exit to Factory (range 9) 6401 | -6/Lower Caves | Spotted B-75 Beast 6479 | -6/Lower Caves | Lost 3 parts (1p2w) 6491 | -6/Lower Caves | Attracted the attention of an 0b10 checkpoint 6578 | -6/Lower Caves | Encountered a Warlord checkpoint 6579 | -6/Lower Caves | Discovered new exit (range 13) 6613 | -6/Lower Caves | Entered Zion 6673 | -6/Zion | Discovered new exit (range 11) 7186 | -6/Zion | Learned 12 Factory zone layouts 7220 | -6/Zion | Found CR-A16's Pointy Stick 7371 | -6/Zion | Learned location of Warlord (-5) 7974 | -6/Zion | Revealed the true nature of CR-A16's Pointy Stick 7974 | -6/Zion | Destroyed YY-58B(B) 7975 | -6/Zion | Attacked by Zionites 7975 | -6/Zion | Spotted 3M-1TI(B) 7997 | -6/Zion | Core integrity fell below 50% 7999 | -6/Zion | Destroyed 3M-1TI(B) 8034 | -6/Zion | Lost 3 parts (2p1u) 8105 | -6/Zion | Self-destructed Last Messages --------------- 07996_ Knocked back. 07999_ 3M-1TI(B) suddenly blasts apart at the seams. 07999_ 3M-1TI(B) destroyed. 08003_ Hvy. Armor Plating destroyed. 08004_ Acquired Reflective Plating. 08006_ 15-SS5(z) destroyed. 08010_ Acquired Fission Core. 08011_ Acquired 25 matter. 08023_ VC-BOE(z) pulls a Mak. Sword out of the Twisted Machinery. 08025_ Dropped Shock Rifle. 08026_ Acquired Hvy. Battle Rifle. 08027_ VC-BOE(z) destroyed. 08041_ IR-B41(z) heat damages Flak Gun. 08042_ Destroyed Mak. Leg. 08042_ Destroyed Flak Gun. 08042_ IR-B41(z) critical meltdown. 08049_ KN-PD1(z) destroyed. 08086_ KC-LX4(z) pulls a Mak. Laser out of the Twisted Machinery. 08088_ Enh. Flexi-carbon Leg destroyed. 08090_ KC-LX4(z) destroyed. Map ----- +----------------------------------------------------+ | "##" "" ""##?????????????????????????? | | ""#"" """""" ""#?????????????????????????? | | "#"""" """"""" "#""#???????????????????????? | | """#"" """""""" """"#???????????????????????? | | """"""""""" "#""???????????????????????? | | "" """#???????????????????????? | | "" """ "##???????????????????????? | | " """" ""#???????????????????????? | | """ ""#???????????????????????? | | "" """ ""#???????????????????????? | | """ " """" """ ""##???????????????????????? | | "#"""" """" """" """#???????????????????????## | | ""##"" """ """"""#"#???????????????????????#" | | ###""" """ """"##????????????????????####" | | ??#""" """ ""##????????????????????## ## | | ??#"" """ """#????????????????????# | | ??#""" """" ""#????????????????????# | | ??##"" ""#"" ""##???????????????????# | | ??#""" """" ""#??????????????????## | | ??###" I """#?#####???????????## # | | ???#"" ""#"###[*"############# ## | | ???##" """"""##% """"""""""""# ## | | ???##" "###! """""""""""# | | ???#"" " %=% # !! # | | ???#"" " z [[!% | | ???##" z""=%!z @= ### | | ???#"" "" """""""#!%[ ###?# # | | ???##" """ """""##= = """""""""""#???# # | | ???##" """ """"###%!!"""""""""""#??## | | ???#"" "" """#?#! "############### | | ???#"" ""#?#####???????????# | | ???#"" "" "##?????????????????# | | ???#"" "" """ ""#?????????????????# | | ???##" " """ "##?????????????????## ### | | ????#" "" """""""#??????????????????# #?## | | ????#" """ """#""#??????????????????# #?? | | ??###" """" ""#####??????????????????# #?? | | ??#""" """"" ""#?????????????????????## ##?? | | ###""" """"" ""??????????????????????###??? | | #""" """"""" "#???????????????????????????? | | """" ""#"" "#???????????????????????????? | | "" """"" "#???????????????????????????? | | """"""#???????????????????????????? | | """#"???????????????????????????? | | " ""#????????????????????????????? | | "" "##???????????????????????????? | | ""#"#?????????????????????????? | | """"?????????????????????????? | | "" ""#???????????????????????? | | "" "" """#???????????????????????? | +----------------------------------------------------+ Best States ------------- Heat Dissipation 70 Energy Generation 21 Energy Capacity 925 Matter Stores 300 Matter Capacity 300 Sight Range 22 Robot Scan Range 16 Terrain Scan Range 20 Terrain Scan Density 110 Armor Coverage 600 Resistance: KI 20 Resistance: TH 10 Resistance: EM 25 Propulsion Shielding 66 Evasion (%) 53 Targeting Accuracy 16 Target Analysis 5 Core Analysis 6 Recoil Reduction 1 Particle Charging 25 Salvage Targeting 1 Item Schematics ----------------- Lrg. Storage Unit | -10/Materials | Hacked Cmb. Airjet | -7/Factory | Hacked Spear | -7/Factory | Hacked Adv. Heat Sink | -7/Factory | Hacked Hacking Suite | -7/Factory | Hacked Combat Drone Bay | -7/Data Miner | Free Lgt. Regenerative Plating | -7/Data Miner | Free Exp. Flexi-carbon Leg | -7/Data Miner | Free Exp. Transmission Jammer | -7/Data Miner | Free Mni. Smartbomb Launcher | -7/Data Miner | Free Plasma Sword | -7/Data Miner | Free Kinetic Spear | -7/Data Miner | Free Arc Thrower | -6/Zion | Free Slug Cannon | -6/Zion | Free Enh. Flamer | -6/Zion | Free Robot Schematics ------------------ S-27 Virus | -7/Data Miner | Free G-50 Soldier | -7/Data Miner | Free G-67 Veteran | -7/Data Miner | Free L-41 Fighter | -7/Data Miner | Free H-66 Slayer | -7/Data Miner | Free I-36 Angel | -7/Data Miner | Free Fabricated ------------ Matter Neutralizer | x2 | -6/Factory | Preloaded Alien Tech Used ----------------- None Achievements -------------- None Challenges ------------ None Game ------ Seed HeartMeleeBattery Manual? 0 Play Time 01:07:18 Cumulative 340.5 hours Start 2020.09.13 @ 21:43:09 End 2020.09.13 @ 22:51:50 Sessions 1 Manual Loads 0 Difficulty Rogue Special Mode None Game No. 370 Rogue 370 Adventurer 0 Explorer 0 Win Type - Total 30 Types 17/4/2/1/2/1/3/0/0 Lore% 93 Gallery% 89 Achievement% 79 Wizard Run 0 Options --------- ASCII 0 Keyboard 0 Movement Arrows Keybinds 0 Fullscreen 2 Font 18/SmallcapsGlow Map View 76x50 Tactical HUD 1 Map Filters NONE Filters NONE Steam 1 RUN: 5d44bb16-9ec7-4cd7-96c1-7971159459ec